bitfinex-derivatives/quotes_ETHF0:USTF0_20250816
["timestamp","ask_amount","ask_price","bid_price","bid_amount"]
[1755367918346,1.90378,4413.3,4413.2,21.2472]
[1755367920445,1.4509,4412.7,4412.6,3.819]
[1755367920646,0.1623,4412.1,4412.0,3.2078]
[1755367920851,0.8268,4412.1,4412.0,24.4747]
[1755367921155,0.8268,4412.1,4412.0,25.0715]
[1755367921549,0.8268,4412.1,4412.0,25.3383]
[1755367921755,0.5848,4412.1,4412.0,25.3383]
[1755367922755,0.8385,4412.1,4412.0,25.3383]
[1755367923443,0.8385,4412.1,4412.0,24.7058]
[1755367923649,1.4509,4412.1,4412.0,25.0725]
[1755367923844,1.4509,4412.1,4412.0,25.3383]
[1755367924950,1.4509,4412.1,4412.0,4.4345]
[1755367925252,1.4509,4412.1,4412.0,25.3343]
[1755367925451,1.4509,4412.1,4412.0,4.7003]
[1755367925651,1.4509,4412.1,4412.0,25.3293]
[1755367925956,1.2089,4412.1,4412.0,25.3293]
[1755367926957,1.4509,4412.1,4412.0,25.3293]
[1755367929852,0.45299,4412.3,4412.0,24.4336]
[1755367930054,0.2537,4412.2,4412.1,1.4925]
[1755367930558,1.4509,4412.2,4412.1,22.1145]
[1755367930858,1.0466,4412.2,4412.1,22.1145]
[1755367931358,1.4509,4412.2,4412.1,22.1145]
[1755367932755,0.87551,4412.1,4412.0,3.2078]
[1755367933052,1.90391,4412.1,4412.0,23.8248]
[1755367933961,1.90391,4412.1,4412.0,24.2632]
[1755367934360,1.90391,4412.1,4412.0,24.6299]
[1755367934561,1.90391,4412.1,4412.0,4.1857]
[1755367934758,1.90391,4412.1,4412.0,23.8238]
[1755367935362,1.90391,4412.1,4412.0,4.1857]
[1755367935558,1.90391,4412.1,4412.0,23.8258]
[1755367936267,1.90391,4412.1,4412.0,24.089]
[1755367936559,0.4299,4412.1,4412.0,25.3183]
[1755367937061,0.8385,4412.1,4412.0,25.3183]
[1755367937262,1.4509,4412.1,4412.0,25.3183]
[1755367937565,1.4509,4412.1,4412.0,3.2078]
[1755367937765,1.4509,4412.1,4412.0,23.8258]
[1755367938263,1.4509,4412.1,4412.0,24.089]
[1755367938563,1.4509,4412.1,4412.0,24.2642]
[1755367938758,1.4509,4412.1,4412.0,24.6524]
[1755367941567,1.4509,4412.1,4412.0,25.0786]
[1755367943167,1.4735,4412.1,4410.6,0.45317]
[1755367943467,0.6025,4411.0,4410.9,4.69]
[1755367943665,3.4682,4412.6,4411.9,1.4822]
[1755367943858,0.3421,4412.1,4412.0,21.2638]
[1755367944056,0.6025,4412.1,4412.0,21.2638]
[1755367944470,0.8629,4412.1,4412.0,22.1562]
[1755367945166,0.8629,4412.1,4411.5,3.8451]
[1755367945167,0.5208,4412.0,4411.5,3.8451]
[1755367945371,0.8629,4411.6,4411.5,4.4349]
[1755367945573,0.8629,4411.6,4411.5,25.1099]
[1755367945773,0.6025,4411.6,4411.5,25.1099]
[1755367945973,0.6025,4411.6,4411.5,25.365]
[1755367946375,0.8629,4411.6,4411.5,25.365]
[1755367946570,0.3421,4411.6,4411.5,25.365]
[1755367946968,0.2604,4411.9,4411.5,25.365]
[1755367947171,0.2604,4411.8,4411.6,0.8924]
[1755367947375,0.4357,4411.8,4411.7,0.5898]
[1755367947579,0.6025,4411.8,4411.7,1.4822]
[1755367948080,0.8629,4411.8,4411.7,22.1552]
[1755367949278,0.6025,4411.8,4411.7,22.1552]
[1755367949578,0.3421,4412.4,4412.3,1.4822]
[1755367949779,0.82506125,4412.4,4412.3,22.1502]
[1755367949979,1.08546125,4412.4,4412.3,22.1502]
[1755367951382,1.08546125,4412.4,4412.3,22.14506408]
[1755367951882,1.53845125,4412.4,4412.3,22.14506408]
[1755367956876,2.05115125,4412.4,4411.8,0.6433]
[1755367957186,0.8629,4411.6,4411.5,1.4822]
[1755367957385,0.8629,4411.6,4411.5,22.1362]
[1755367957779,0.8629,4411.6,4411.5,1.4822]
[1755367958088,0.8629,4411.6,4411.5,22.1382]
[1755367958383,0.79519,4411.5,4411.4,4.1858]
[1755367958576,1.31599,4411.5,4411.4,25.0969]
[1755367958980,1.31599,4411.5,4411.4,25.346]
[1755367959979,1.31601,4411.3,4411.2,32.635]
[1755367960286,1.53858023,4411.3,4411.2,53.309]
[1755367960485,1.53858023,4411.3,4410.2,3.2078]
[1755367960486,0.7953,4410.5,4410.4,1.2331]
[1755367960681,0.45311,4411.3,4410.9,0.2659]
[1755367960880,0.45311,4411.3,4411.2,1.4822]
[1755367961081,1.05561,4411.3,4411.2,1.4822]
[1755367961386,1.31601,4411.3,4411.2,22.1742]
[1755367961785,1.31601,4411.3,4411.2,1.2271]
[1755367962084,1.31601,4411.3,4410.7,3.2078]
[1755367962085,0.79526,4410.8,4410.7,0.2659]
[1755367962286,0.79526,4410.8,4410.7,21.3743]
[1755367962484,1.31606,4410.8,4410.7,21.3743]
[1755367962686,0.4532,4410.4,4410.3,1.2331]
[1755367962988,0.7953,4410.4,4410.3,22.1792]
[1755367963174,0.7953,4410.4,4410.3,1.4822]
[1755367963378,1.3161,4410.4,4410.3,22.1802]
[1755367964376,0.8629,4410.4,4410.3,22.1802]
[1755367965590,0.8629,4410.4,4410.3,22.1782]
[1755367966488,0.6025,4410.4,4410.3,1.4822]
[1755367966784,0.71358,4410.6,4410.4,0.5042]
[1755367966986,1.05568,4410.6,4410.5,0.5898]
[1755367967286,1.05568,4410.6,4410.5,1.4822]
[1755367967487,1.31608,4410.6,4410.5,22.1752]
[1755367968686,1.31698,4410.6,4410.5,22.1752]
[1755367969289,0.8638,4410.6,4410.5,22.1752]
[1755367969883,0.3262,4411.1,4411.0,0.5982]
[1755367970083,0.5705,4411.1,4411.0,22.1449]
[1755367970592,0.8361,4411.1,4411.0,22.1449]
[1755367970984,1.28924,4411.1,4411.0,22.1449]
[1755367972286,3.3701,4411.3,4411.2,0.3471]
[1755367972593,4.25181,4411.3,4411.2,22.1509]
[1755367972789,4.49701,4411.3,4411.2,22.1509]
[1755367973184,4.0439,4411.3,4411.2,22.1509]
[1755367973895,3.2078,4411.3,4411.2,22.1509]
[1755367976495,3.6357,4411.3,4411.2,22.1509]
[1755367977197,3.7987,4411.3,4411.2,22.1509]
[1755367977390,4.0439,4411.3,4411.2,22.1509]
[1755367979802,0.45312,4411.2,4410.8,0.45315]
[1755367979996,0.8361,4410.9,4410.8,1.90905]
[1755367980290,0.8361,4410.9,4410.8,22.58705]
[1755367980690,0.5909,4410.9,4410.8,22.1339]
[1755367982792,0.5918,4410.9,4410.8,22.1339]
[1755367983097,0.5909,4410.9,4410.8,22.1339]
[1755367983300,0.5705,4411.2,4411.1,1.4559]
[1755367983597,0.572,4411.2,4411.1,22.1269]
[1755367983893,0.8376,4411.2,4411.1,22.1269]
[1755367986103,0.3253,4411.2,4411.1,21.2692]
[1755367986398,0.5108,4411.5,4411.1,21.72232]
[1755367986892,0.8361,4411.5,4411.4,0.5982]
[1755367987092,0.8361,4411.5,4411.4,22.1199]
[1755367988602,0.8376,4411.5,4411.4,22.1199]
[1755368001908,0.8361,4411.5,4411.4,22.1199]
[1755368002211,1.05708836,4411.5,4411.4,22.1199]
[1755368003308,0.22098836,4411.5,4411.4,22.573]
[1755368003613,3.2078,4411.8,4411.4,22.573]
[1755368003614,0.88708,4411.6,4411.5,1.4876]
[1755368003812,0.39211559,4411.6,4411.5,1.4876]
[1755368004005,0.65501559,4411.6,4411.5,1.4876]
[1755368004303,0.81931559,4411.6,4411.5,1.4876]
[1755368004503,0.82081559,4411.6,4411.5,1.4876]
[1755368004704,0.22101559,4411.6,4411.5,1.4876]
[1755368004904,3.2078,4411.8,4411.7,0.5907]
[1755368005109,0.61732,4412.2,4412.1,1.4876]
[1755368005304,0.8495,4412.2,4412.1,22.1196]
[1755368006307,3.2304,4413.0,4412.1,22.1196]
[1755368006308,0.79079,4412.5,4412.4,0.5907]
[1755368006607,0.79079,4412.5,4412.4,22.1196]
[1755368007005,1.30489,4412.5,4412.4,22.1196]
[1755368007215,0.8519,4412.5,4412.4,22.1196]
[1755368007409,1.05278,4412.6,4412.5,1.4876]
[1755368007814,0.5983,4412.6,4412.5,1.4876]
[1755368009114,0.5998,4412.6,4412.5,1.4876]
[1755368009315,0.8495,4412.6,4412.5,1.4876]
[1755368010911,1.03803,4413.0,4412.9,0.5907]
[1755368011214,1.03803,4413.0,4412.9,22.1286]
[1755368011605,1.30243,4413.0,4412.9,22.1286]
[1755368011919,1.30483,4413.0,4412.9,22.1286]
[1755368012314,1.30243,4413.0,4412.9,22.1286]
[1755368012617,1.30483,4413.0,4412.9,22.1286]
[1755368016710,0.3354,4413.0,4412.9,22.1286]
[1755368016915,0.5998,4413.0,4412.9,22.1286]
[1755368018420,0.5983,4413.0,4412.9,22.1286]
[1755368018623,0.3354,4413.0,4412.9,22.1286]
[1755368018815,0.1711,4413.0,4412.9,22.1286]
[1755368019120,3.2078,4413.5,4412.9,21.5379]
[1755368019319,1.13366,4413.7,4413.6,1.3187]
[1755368019624,1.30476,4413.7,4413.6,22.1146]
[1755368028741,1.30476,4413.7,4413.6,1.4876]
[1755368028929,1.30476,4413.7,4413.6,22.1046]
[1755368032232,1.51988746,4413.7,4413.6,22.1046]
[1755368033929,1.54248746,4413.7,4413.6,0.4094]
[1755368034231,0.3424,4412.6,4412.5,4.62138]
[1755368034529,0.8519,4412.6,4412.5,25.49828]
[1755368035031,0.5927,4412.6,4412.5,25.49828]
[1755368035429,0.8519,4412.6,4412.5,25.49828]
[1755368036040,0.8528,4412.6,4412.5,25.0453]
[1755368036427,0.1701,4412.7,4412.6,1.41358]
[1755368036631,0.4204,4412.7,4412.6,1.89898]
[1755368037733,0.2592,4413.3,4412.6,1.67448]
[1755368037940,0.4204,4412.8,4412.7,22.061]
[1755368039341,0.4204,4412.8,4412.7,22.065]
[1755368039635,0.4204,4412.8,4412.7,22.064]
[1755368039837,0.8542,4413.6,4413.5,1.0534]
[1755368040037,1.06977508,4413.6,4413.5,21.6714]
[1755368041233,1.06977508,4413.6,4413.5,21.8395]
[1755368041441,1.06747508,4413.6,4413.5,21.8395]
[1755368041638,1.06837508,4413.6,4413.5,21.8395]
[1755368042234,1.06837508,4413.6,4413.5,22.064]
[1755368042440,1.06837508,4413.6,4413.5,21.8395]
[1755368042841,1.06837508,4413.6,4413.5,22.064]
[1755368043841,1.52125508,4413.6,4413.5,22.064]
[1755368044045,1.06837508,4413.6,4413.5,21.8395]
[1755368045847,1.06837508,4413.6,4413.5,1.2215]
[1755368046047,1.06977508,4413.6,4413.5,21.8375]
[1755368048747,1.06984576,4413.6,4413.5,21.8375]
[1755368049748,1.06984576,4413.6,4413.5,1.2215]
[1755368049946,1.06984576,4413.6,4413.5,21.8365]
[1755368055948,1.06984576,4413.6,4413.5,1.2215]
[1755368056148,1.06984576,4413.6,4413.5,21.8365]
[1755368057646,1.0698818,4413.6,4413.5,21.8365]
[1755368058053,0.2156818,4413.6,4413.5,22.061]
[1755368058248,0.70317,4413.7,4413.6,1.04128]
[1755368058446,0.87327,4413.7,4413.6,1.89888]
[1755368058749,0.6862,4413.7,4413.6,1.89888]
[1755368058950,0.8509,4413.7,4413.6,1.89888]
[1755368059451,0.8509,4413.7,4413.6,1.446]
[1755368060048,0.8509,4413.7,4413.6,22.06]
[1755368060251,0.8509,4413.7,4413.6,21.8355]
[1755368063144,0.8509,4413.7,4413.6,22.0593]
[1755368063145,0.5851,4413.7,4413.6,22.0593]
[1755368065249,0.8509,4413.7,4413.6,22.0593]
[1755368065957,0.4204,4413.7,4413.6,22.0593]
[1755368066350,0.87326,4413.7,4413.6,22.0593]
[1755368066751,0.6862,4413.7,4413.6,22.0593]
[1755368068251,0.90193193,4413.7,4413.6,22.0593]
[1755368068758,0.63613193,4413.7,4413.6,22.0593]
[1755368069153,0.90193193,4413.7,4413.6,22.0593]
[1755368069352,1.06667982,4413.7,4413.6,22.0593]
[1755368071960,1.06667982,4413.7,4413.6,21.8355]
[1755368072851,0.45281,4414.3,4414.2,1.2283]
[1755368073053,1.28581,4414.3,4414.2,21.8403]
[1755368073357,1.92962778,4414.3,4414.2,21.8403]
[1755368073555,1.28581,4414.3,4414.2,21.8403]
[1755368075459,0.833,4414.3,4414.2,1.4521]
[1755368075658,0.833,4414.3,4414.2,21.4046]
[1755368075859,0.833,4414.3,4414.2,21.6715]
[1755368076757,0.833,4414.3,4414.2,21.8393]
[1755368080262,0.833,4414.3,4414.2,1.2283]
[1755368080454,0.833,4414.3,4414.2,21.8383]
[1755368080659,0.833,4414.3,4414.2,1.2283]
[1755368080859,0.833,4414.3,4414.2,21.8383]
[1755368081763,0.833,4414.3,4414.2,21.8373]
[1755368082366,0.833,4414.3,4414.2,1.2283]
[1755368082570,1.12454,4413.9,4413.8,0.7936]
[1755368082763,1.28584,4413.9,4413.8,22.0611]
[1755368082962,1.02004,4413.9,4413.8,22.0611]
[1755368083565,1.02004,4413.9,4413.8,1.4521]
[1755368083761,1.28584,4413.9,4413.8,22.0611]
[1755368083961,1.28584,4413.9,4413.8,1.4521]
[1755368084165,1.28584,4413.9,4413.8,22.0611]
[1755368087366,0.833,4413.9,4413.8,22.0611]
[1755368088668,0.254,4414.7,4413.9,0.6105]
[1755368088867,0.45282,4414.2,4414.1,1.422]
[1755368089174,0.45282,4414.2,4414.1,22.03]
[1755368089374,0.1653,4414.3,4414.2,1.422]
[1755368089774,0.6631,4414.3,4414.2,1.422]
[1755368090275,0.8395,4414.3,4414.2,1.422]
[1755368091871,0.4193,4414.3,4414.2,22.03]
[1755368092468,0.6631,4414.3,4414.2,22.03]
[1755368093367,0.8395,4414.3,4414.2,22.03]
[1755368093566,0.8395,4414.3,4414.2,21.8062]
[1755368093972,0.8395,4414.3,4414.2,22.03]
[1755368094176,0.8395,4414.3,4414.2,21.8062]
[1755368095472,0.8395,4414.3,4414.2,22.03]
[1755368098574,0.254,4414.3,4414.2,1.65101]
[1755368098779,0.254,4414.3,4414.2,22.48081]
[1755368100090,0.254,4414.3,4414.2,22.028]
[1755368100291,0.8395,4414.3,4414.2,22.028]
[1755368101190,0.8395,4414.3,4414.2,21.8042]
[1755368102086,0.8395,4414.3,4414.2,22.028]
[1755368102989,0.45272,4415.1,4414.3,0.3635]
[1755368103189,0.6631,4415.1,4415.0,1.1982]
[1755368103388,0.6631,4415.1,4415.0,22.027]
[1755368103584,0.4193,4415.1,4415.0,22.47973]
[1755368103794,0.4193,4415.1,4415.0,22.027]
[1755368104892,1.11582,4415.1,4415.0,22.027]
[1755368105092,1.29222,4415.1,4415.0,22.027]
[1755368105291,1.29222,4415.1,4415.0,22.026]
[1755368105590,0.8395,4415.1,4415.0,1.1982]
[1755368105793,0.5957,4415.1,4415.0,22.026]
[1755368106193,0.8395,4415.1,4415.0,21.8022]
[1755368106392,0.8395,4414.6,4414.5,3.5458]
[1755368106591,0.8395,4414.6,4414.5,24.763]
[1755368106895,0.8395,4414.6,4414.5,25.01]
[1755368107088,0.8395,4414.6,4414.5,3.6231]
[1755368107288,0.8395,4414.6,4414.5,23.8098]
[1755368107694,0.8395,4414.6,4414.5,3.2078]
[1755368107994,0.8395,4414.6,4414.5,23.8098]
[1755368108690,0.8395,4414.9,4414.8,1.1982]
[1755368108898,0.8395,4414.9,4414.8,22.024]
[1755368109194,0.254,4414.9,4414.8,21.1897]
[1755368109389,0.8395,4414.9,4414.8,21.8002]
[1755368109989,0.8395,4414.9,4414.8,1.1982]
[1755368110292,0.8395,4414.9,4414.8,21.8002]
[1755368110492,0.254,4414.9,4414.8,1.87475]
[1755368110690,0.45272,4415.2,4415.1,0.2497]
[1755368110896,0.70672,4415.2,4415.1,21.777]
[1755368111094,0.87202,4415.2,4415.1,22.024]
[1755368111290,1.11582,4415.2,4415.1,22.024]
[1755368111495,0.254,4415.2,4415.1,1.422]
[1755368111995,0.1653,4415.6,4415.5,1.422]
[1755368112196,0.5855,4415.6,4415.5,21.8002]
[1755368112497,0.8395,4415.6,4415.5,21.8002]
[1755368113398,0.254,4415.6,4415.5,0.5877]
[1755368113600,0.254,4415.6,4415.5,21.4125]
[1755368114001,0.4193,4415.6,4415.5,22.023]
[1755368114201,0.8395,4415.6,4415.5,21.7992]
[1755368114603,0.8395,4415.6,4415.5,1.1982]
[1755368114803,0.8395,4415.6,4415.5,21.7982]
[1755368115498,0.8395,4415.6,4415.5,1.1982]
[1755368115698,0.8395,4415.6,4415.5,21.7982]
[1755368116100,0.8395,4415.6,4415.5,21.7972]
[1755368116300,0.8395,4415.6,4415.5,22.021]
[1755368117898,0.254,4415.6,4415.5,22.021]
[1755368118093,0.4193,4415.6,4415.5,22.021]
[1755368118404,0.8395,4415.6,4415.5,21.7972]
[1755368118601,0.8395,4415.6,4415.5,1.1982]
[1755368118802,0.8395,4415.6,4415.5,21.7972]
[1755368118997,0.5957,4415.6,4415.5,21.7972]
[1755368119203,0.254,4415.6,4415.5,22.47428]
[1755368119404,1.05208,4416.5,4416.4,0.2629]
[1755368119606,1.05208,4416.5,4416.4,21.8559]
[1755368120099,0.87487,4416.6,4416.5,0.647]
[1755368120297,1.30417,4416.6,4416.5,1.2579]
[1755368121201,0.70347,4416.6,4416.5,0.821]
[1755368121405,0.96127,4416.6,4416.5,1.2579]
[1755368121713,1.30297,4416.6,4416.5,1.2579]
[1755368122504,1.30417,4416.6,4416.5,1.2579]
[1755368123406,1.30417,4416.6,4416.0,3.66043]
[1755368123407,0.45262,4416.2,4416.0,3.66043]
[1755368123608,0.8516,4416.1,4416.0,3.2078]
[1755368123803,0.8516,4415.5,4415.4,4.91839]
[1755368124107,0.8516,4415.5,4415.4,4.0288]
[1755368124405,0.8516,4415.5,4415.4,3.6455]
[1755368124599,0.96133,4416.0,4415.9,0.8746]
[1755368124804,0.45258,4416.5,4416.4,1.2579]
[1755368125104,0.87378,4416.5,4416.4,22.0783]
[1755368125807,1.30418,4416.5,4416.4,21.8539]
[1755368126106,0.4212,4416.5,4416.4,22.0783]
[1755368126606,0.2509,4416.5,4416.4,22.0783]
[1755368126807,0.2509,4416.5,4416.4,54.6873]
[1755368127204,4.25293,4417.0,4416.9,0.9942]
[1755368127411,4.0582,4417.0,4416.9,21.8529]
[1755368127707,0.9504,4418.2,4418.1,1.2579]
[1755368127907,0.8516,4417.6,4417.5,3.2078]
[1755368128101,0.8516,4417.6,4417.5,21.6162]
[1755368128102,0.2509,4417.6,4417.5,21.6162]
[1755368128411,0.8504,4417.9,4417.8,1.2579]
[1755368128709,0.8504,4417.9,4417.8,22.1053]
[1755368128905,0.6007,4417.6,4417.5,3.2078]
[1755368129109,0.6007,4417.6,4417.1,0.3833]
[1755368129110,0.45252,4417.1,4417.0,3.2078]
[1755368129305,1.30412,4417.1,4417.0,24.1077]
[1755368129502,1.30412,4417.1,4417.0,24.9295]
[1755368130005,1.30412,4417.1,4417.0,3.2078]
[1755368130213,1.30416,4416.7,4416.6,0.821]
[1755368130508,1.30416,4416.7,4416.6,21.7327]
[1755368131604,0.45259,4416.4,4416.3,3.5911]
[1755368131808,1.30419,4416.4,4416.3,3.2078]
[1755368132005,1.30419,4416.4,4415.6,3.2078]
[1755368132006,1.30426,4415.7,4415.6,3.2078]
[1755368132506,1.30426,4415.7,4415.6,20.655]
[1755368133207,1.30426,4415.7,4415.6,23.8628]
[1755368133409,1.30426,4415.7,4415.6,20.655]
[1755368134513,0.7944,4415.3,4415.2,0.821]
[1755368134709,0.5087,4415.2,4415.1,3.2078]
[1755368134914,0.1703,4414.1,4414.0,3.2078]
[1755368135116,0.8504,4414.1,4414.0,3.2078]
[1755368135309,0.8504,4414.1,4414.0,22.3178]
[1755368135512,0.5087,4414.9,4414.1,1.34992]
[1755368135712,0.8504,4414.9,4414.8,1.508]
[1755368135912,0.8504,4414.9,4414.8,0.2629]
[1755368136214,0.3417,4414.5,4414.1,0.513]
[1755368136419,0.8504,4414.1,4414.0,3.2078]
[1755368136719,0.8504,4414.1,4414.0,23.8988]
[1755368137013,0.8504,4414.1,4414.0,23.9028]
[1755368137516,0.8504,4414.1,4414.0,3.2078]
[1755368137714,0.3417,4413.4,4413.3,3.8187]
[1755368137915,0.8504,4413.4,4413.3,17.3147]
[1755368138116,0.8504,4413.4,4413.3,3.2078]
[1755368138416,0.3417,4413.4,4413.3,20.719]
[1755368138612,0.3417,4413.4,4413.3,22.227]
[1755368139014,0.8504,4413.4,4413.3,22.227]
[1755368139521,0.8504,4413.4,4412.9,1.16]
[1755368139714,0.8504,4412.9,4412.8,4.4657]
[1755368140019,0.8504,4412.9,4412.8,25.4408]
[1755368142412,0.5087,4413.7,4412.8,25.24676]
[1755368142614,0.8504,4413.6,4413.5,1.1247]
[1755368142815,0.8504,4413.6,4413.5,22.228]
[1755368143418,0.2509,4414.5,4413.5,21.8447]
[1755368143620,1.0523,4414.4,4414.3,0.2629]
[1755368143919,1.3032,4414.4,4414.3,20.9849]
[1755368144422,0.3417,4414.4,4414.3,22.23]
[1755368144718,0.4223,4414.3,4414.2,20.725]
[1755368144916,0.1703,4414.1,4414.0,1.2579]
[1755368145225,0.3417,4414.1,4414.0,22.235]
[1755368145415,0.45278,4414.6,4414.4,1.508]
[1755368145615,0.1703,4414.7,4414.6,1.508]
[1755368146023,0.1703,4414.9,4414.8,0.6109]
[1755368146221,0.1703,4414.9,4414.8,1.508]
[1755368146621,0.1703,4414.9,4414.8,4.7158]
[1755368146825,0.1703,4415.4,4415.3,1.508]
[1755368147121,0.1703,4415.4,4415.3,22.243]
[1755368147421,0.1703,4415.4,4415.3,1.508]
[1755368147619,0.1703,4415.4,4415.3,22.245]
[1755368148218,0.45268,4415.5,4415.4,1.508]
[1755368148219,0.5926,4415.5,4415.4,1.508]
[1755368148422,0.5926,4415.5,4415.4,0.6109]
[1755368149024,0.8549,4415.5,4415.4,1.4879]
[1755368149222,0.1703,4415.5,4415.4,1.4879]
[1755368149621,0.348,4415.5,4415.4,1.4879]
[1755368149820,0.8755,4415.5,4415.4,1.4879]
[1755368152527,0.80473,4416.0,4415.9,1.2107]
[1755368152727,0.80473,4416.0,4415.9,22.1838]
[1755368152929,0.44,4416.3,4416.2,0.169]
[1755368153126,0.8796,4416.3,4416.2,1.4608]
[1755368153932,0.6173,4416.4,4416.3,1.4608]
[1755368154221,0.8796,4416.4,4416.3,22.1878]
[1755368155930,0.1744,4416.5,4416.4,1.4608]
[1755368156125,0.6173,4416.5,4416.4,1.4608]
[1755368156323,0.2652,4416.8,4416.5,0.45258]
[1755368156525,0.2652,4416.8,4416.7,1.4608]
[1755368156526,0.6173,4416.8,4416.7,1.4608]
[1755368156832,3.2078,4417.0,4416.9,0.5838]
[1755368157130,0.8796,4417.0,4416.9,22.1938]
[1755368157523,0.1744,4417.0,4416.9,22.1938]
[1755368157823,1.3321,4417.3,4417.2,1.4608]
[1755368158124,1.3321,4417.3,4417.2,21.9377]
[1755368158331,0.8796,4417.3,4417.2,22.1918]
[1755368158527,0.6173,4417.6,4417.5,0.5838]
[1755368158722,0.6173,4417.6,4417.5,22.1908]
[1755368158927,0.8796,4417.6,4417.5,22.1908]
[1755368160734,0.4396,4417.6,4417.5,22.1908]
[1755368160932,0.4396,4417.6,4417.5,22.1878]
[1755368161231,0.8796,4417.6,4417.5,22.1878]
[1755368163737,0.8796,4417.6,4417.5,20.727]
[1755368163925,0.8796,4417.6,4417.5,21.6792]
[1755368164129,0.8796,4417.6,4417.5,22.1878]
[1755368165833,0.4396,4417.6,4417.5,1.4608]
[1755368166134,0.8796,4417.6,4417.5,22.1698]
[1755368168638,0.45245,4417.8,4417.5,21.2928]
[1755368168837,0.89205,4417.8,4417.7,0.5838]
[1755368169038,0.89205,4417.8,4417.7,22.1608]
[1755368169240,1.06975,4417.8,4417.7,22.1608]
[1755368169538,1.33205,4417.8,4417.7,22.1608]
[1755368170438,0.1,4418.2,4417.7,21.2838]
[1755368170740,1.33202,4418.1,4418.0,1.4608]
[1755368170936,1.33202,4418.1,4418.0,22.1658]
[1755368171539,0.80452,4418.1,4418.0,22.1658]
[1755368171738,0.1,4418.2,4418.0,1.4608]
[1755368171942,0.90451,4418.2,4418.1,1.4608]
[1755368172135,1.16971,4418.2,4418.1,22.1628]
[1755368173538,1.43201,4418.2,4418.1,22.1628]
[1755368174641,1.0389,4419.4,4419.3,0.5838]
[1755368174845,1.59078,4419.4,4419.3,20.708]
[1755368175243,2.23085811,4419.4,4419.3,20.708]
[1755368176346,2.23085811,4419.4,4418.7,0.2541]
[1755368176347,1.1385,4419.1,4419.0,20.721]
[1755368176541,1.15147811,4419.1,4419.0,20.735]
[1755368176737,1.15147811,4419.1,4418.4,0.6229]
[1755368176945,0.5114,4418.4,4418.3,3.2078]
[1755368177140,0.3521,4418.7,4418.6,1.4608]
[1755368177442,1.1385,4418.7,4418.6,0.2501]
[1755368177743,1.1385,4418.7,4418.6,21.0141]
[1755368177945,1.1385,4418.7,4418.6,22.2248]
[1755368178149,1.1385,4418.7,4418.6,22.2288]
[1755368178555,1.1385,4418.7,4418.6,21.9747]
[1755368178847,1.1385,4418.7,4418.6,22.2148]
[1755368179048,1.1385,4418.7,4418.6,22.2128]
[1755368179245,0.5054,4419.4,4419.3,0.2546]
[1755368179551,0.1738,4419.4,4419.3,22.2334]
[1755368179743,1.49606425,4419.4,4419.3,22.2334]
[1755368179941,0.64066425,4419.4,4419.3,22.0153]
[1755368180250,0.98386425,4419.4,4419.3,22.2554]
[1755368180443,0.81446425,4419.4,4419.3,1.4704]
[1755368180641,0.81446425,4419.4,4419.3,22.2574]
[1755368181250,1.49606425,4419.4,4419.3,22.2574]
[1755368181445,1.49606425,4419.4,4419.3,22.0173]
[1755368181649,0.81446425,4419.4,4419.3,22.0173]
[1755368181850,1.59496425,4419.4,4419.3,22.2574]
[1755368182552,1.59496425,4419.4,4418.8,3.2078]
[1755368182553,1.1126,4418.9,4418.8,4.6782]
[1755368182754,1.1126,4418.9,4418.8,25.4572]
[1755368183253,1.75379998,4418.9,4418.8,25.4572]
[1755368183453,1.75379998,4418.9,4418.8,25.2171]
[1755368183751,1.75379998,4418.9,4418.8,24.9935]
[1755368183950,1.75379998,4418.9,4418.8,24.9905]
[1755368184148,1.75379998,4418.9,4418.8,24.0018]
[1755368184346,0.64119998,4418.9,4418.8,25.4722]
[1755368184850,0.6072,4419.5,4419.4,0.5938]
[1755368185054,1.75412011,4419.5,4419.4,22.2664]
[1755368185648,0.98472011,4419.5,4419.4,22.2664]
[1755368186049,0.64152011,4419.5,4419.4,22.2664]
[1755368186246,0.64152011,4419.6,4419.4,21.3898]
[1755368186451,0.5914,4419.5,4419.4,21.3898]
[1755368186652,1.23292011,4419.5,4419.4,21.3898]
[1755368186954,1.23938291,4419.5,4419.4,22.2664]
[1755368187549,0.64798291,4419.5,4419.4,22.2664]
[1755368188253,0.99118291,4419.5,4419.4,22.2664]
[1755368188454,1.23938291,4419.5,4419.4,22.2664]
[1755368190557,0.82178291,4419.5,4419.4,22.2664]
[1755368190956,1.76058291,4419.5,4419.4,22.2664]
[1755368192155,0.82178291,4419.5,4418.8,3.2078]
[1755368192456,1.14302011,4419.4,4419.3,0.4268]
[1755368192658,1.14302011,4419.4,4419.3,22.2434]
[1755368192853,1.75412011,4419.4,4419.3,22.2434]
[1755368194657,0.98472011,4419.4,4419.3,22.2434]
[1755368194857,1.24872011,4419.4,4419.3,22.2434]
[1755368195048,1.75412011,4419.4,4419.3,22.2434]
[1755368195863,0.98472011,4419.4,4419.3,22.2434]
[1755368197860,0.81532011,4419.4,4419.3,22.2434]
[1755368198559,0.64152011,4419.4,4419.3,22.2434]
[1755368198953,1.23292011,4419.4,4419.3,22.2434]
[1755368200361,1.49692011,4419.4,4419.3,22.2434]
[1755368203153,0.91805511,4421.0,4420.3,0.2038]
[1755368203354,0.2482,4421.8,4421.0,3.2078]